[Event "Early-Titled-Tuesday-Blitz-February-13-2024"]
[Site "Chess.com"]
[Date "2024.02.13"]
[Round "3"]
[White "esrosenberg"]
[Black "MariamiJaniashvili"]
[Result "1-0"]
[WhiteElo "2414"]
[BlackElo "2164"]
[TimeControl "180+1"]
[EndTime "8:31:31 PST"]
[Termination "esrosenberg won by resignation"]

1. Nf3 {[%clk 0:03:00.9]} 1... g6 {[%clk 0:02:58.2]} 2. c4 {[%clk 0:02:59.4]}
2... c5 {[%clk 0:02:57.5]} 3. Nc3 {[%clk 0:02:59.6]} 3... Nc6 {[%clk 0:02:57.3]}
4. g3 {[%clk 0:03:00.1]} 4... Bg7 {[%clk 0:02:57.7]} 5. Bg2 {[%clk 0:03:00.3]}
5... e6 {[%clk 0:02:57]} 6. O-O {[%clk 0:03:00.4]} 6... Nge7 {[%clk 0:02:55.8]}
7. d3 {[%clk 0:02:59.4]} 7... d5 {[%clk 0:02:52.2]} 8. cxd5 {[%clk 0:02:57.6]}
8... exd5 {[%clk 0:02:48.5]} 9. Bg5 {[%clk 0:02:56.2]} 9... O-O {[%clk
0:02:44.1]} 10. Qd2 {[%clk 0:02:55]} 10... d4 {[%clk 0:02:37.2]} 11. Ne4 {[%clk
0:02:50.4]} 11... f6 {[%clk 0:02:28.5]} 12. Bh6 {[%clk 0:02:47.7]} 12... b6
{[%clk 0:02:27.7]} 13. Bxg7 {[%clk 0:02:46.8]} 13... Kxg7 {[%clk 0:02:26.6]} 14.
a3 {[%clk 0:02:25.1]} 14... a5 {[%clk 0:02:24.3]} 15. h4 {[%clk 0:02:19.5]}
15... h5 {[%clk 0:02:12.2]} 16. Rfc1 {[%clk 0:02:17.2]} 16... Bf5 {[%clk
0:02:02.9]} 17. Rab1 {[%clk 0:02:13.3]} 17... Nd5 {[%clk 0:01:51.9]} 18. Ne1
{[%clk 0:02:08.7]} 18... Rc8 {[%clk 0:01:43.4]} 19. Nc2 {[%clk 0:02:07.5]} 19...
Qd7 {[%clk 0:01:41.3]} 20. Kh2 {[%clk 0:01:32.7]} 20... Rfe8 {[%clk 0:01:36.6]}
21. Na1 {[%clk 0:01:17.3]} 21... a4 {[%clk 0:01:28.6]} 22. Nc2 {[%clk
0:01:12.9]} 22... Ne5 {[%clk 0:01:24.2]} 23. Ne1 {[%clk 0:01:07]} 23... Ng4+
{[%clk 0:01:10.8]} 24. Kg1 {[%clk 0:01:06.6]} 24... Rc6 {[%clk 0:01:01]} 25. Nc2
{[%clk 0:01:04.6]} 25... Rce6 {[%clk 0:00:53.5]} 26. Ne1 {[%clk 0:01:00.5]}
26... Nge3 {[%clk 0:00:39.3]} 27. Bf3 {[%clk 0:00:53.8]} 27... Bxe4 {[%clk
0:00:33.8]} 28. dxe4 {[%clk 0:00:53.7]} 28... Rxe4 {[%clk 0:00:28]} 29. Bxe4
{[%clk 0:00:49.4]} 29... Rxe4 {[%clk 0:00:28.9]} 30. fxe3 {[%clk 0:00:49.8]}
30... Rxe3 {[%clk 0:00:25.6]} 31. Nf3 {[%clk 0:00:49.3]} 31... Qh3 {[%clk
0:00:24.8]} 32. Qe1 {[%clk 0:00:47.4]} 32... d3 {[%clk 0:00:21.3]} 33. Qf1
{[%clk 0:00:31.5]} 33... Rxe2 {[%clk 0:00:19.1]} 34. Qxh3 {[%clk 0:00:31.3]} 1-0

[Event "Early-Titled-Tuesday-Blitz-February-13-2024"]
[Site "Chess.com"]
[Date "2024.02.13"]
[Round "3"]
[White "Kotlyar_K"]
[Black "mertfelin"]
[Result "0-1"]
[WhiteElo "2558"]
[BlackElo "2311"]
[TimeControl "180+1"]
[EndTime "8:31:32 PST"]
[Termination "mertfelin won by checkmate"]

1. e4 {[%clk 0:03:00.9]} 1... e5 {[%clk 0:03:00.5]} 2. Nf3 {[%clk 0:03:00]} 2...
Nc6 {[%clk 0:03:00.9]} 3. Bb5 {[%clk 0:02:59.6]} 3... a6 {[%clk 0:03:01.2]} 4.
Ba4 {[%clk 0:02:59.4]} 4... Nf6 {[%clk 0:03:01.4]} 5. O-O {[%clk 0:02:59.2]}
5... d6 {[%clk 0:03:02.1]} 6. Re1 {[%clk 0:02:55.4]} 6... Bd7 {[%clk 0:03:01.2]}
7. c3 {[%clk 0:02:55.1]} 7... g6 {[%clk 0:03:01.6]} 8. h3 {[%clk 0:02:53.9]}
8... Bg7 {[%clk 0:03:01.4]} 9. d4 {[%clk 0:02:52.6]} 9... O-O {[%clk 0:03:01]}
10. Nbd2 {[%clk 0:02:45]} 10... exd4 {[%clk 0:02:59.4]} 11. cxd4 {[%clk
0:02:45.9]} 11... Nb4 {[%clk 0:02:59.9]} 12. Bxd7 {[%clk 0:02:29.4]} 12... Qxd7
{[%clk 0:03:00.2]} 13. Qb3 {[%clk 0:02:28.9]} 13... a5 {[%clk 0:03:00.5]} 14. a3
{[%clk 0:02:28.5]} 14... Nc6 {[%clk 0:03:01.1]} 15. Qd3 {[%clk 0:02:26.3]} 15...
Rfe8 {[%clk 0:02:49.7]} 16. b3 {[%clk 0:02:23.6]} 16... Nh5 {[%clk 0:02:44.6]}
17. Bb2 {[%clk 0:01:58.7]} 17... Re7 {[%clk 0:02:38.5]} 18. Qc2 {[%clk
0:01:50.9]} 18... Rae8 {[%clk 0:02:33]} 19. Nc4 {[%clk 0:01:47.1]} 19... Nf6
{[%clk 0:02:24.4]} 20. e5 {[%clk 0:01:43.7]} 20... Nh5 {[%clk 0:02:19.9]} 21.
Rad1 {[%clk 0:01:35.2]} 21... dxe5 {[%clk 0:02:06.7]} 22. dxe5 {[%clk
0:01:36.1]} 22... Qe6 {[%clk 0:01:49.9]} 23. Qc1 {[%clk 0:01:11.7]} 23... Qf5
{[%clk 0:01:35.4]} 24. Qc3 {[%clk 0:00:59.2]} 24... Nf4 {[%clk 0:01:30.1]} 25.
Bc1 {[%clk 0:00:44.3]} 25... h5 {[%clk 0:01:15.5]} 26. Nh4 {[%clk 0:00:38.9]}
26... Qg5 {[%clk 0:01:03.8]} 27. g3 {[%clk 0:00:33.9]} 27... Nxh3+ {[%clk
0:00:49.7]} 28. Kg2 {[%clk 0:00:33.5]} 28... Qg4 {[%clk 0:00:50.5]} 29. f3
{[%clk 0:00:31.7]} 29... Qc8 {[%clk 0:00:40.2]} 30. Rh1 {[%clk 0:00:30]} 30...
Nxe5 {[%clk 0:00:39.8]} 31. Nxe5 {[%clk 0:00:21.9]} 31... Rxe5 {[%clk
0:00:39.3]} 32. Qc4 {[%clk 0:00:10.5]} 32... Re2+ {[%clk 0:00:37]} 33. Kf1
{[%clk 0:00:08.7]} 33... Rf2# {[%clk 0:00:37.5]} 0-1

[Event "Early-Titled-Tuesday-Blitz-February-13-2024"]
[Site "Chess.com"]
[Date "2024.02.13"]
[Round "3"]
[White "MVM2008"]
[Black "rachidhuilda"]
[Result "1-0"]
[WhiteElo "2471"]
[BlackElo "2315"]
[TimeControl "180+1"]
[EndTime "8:31:35 PST"]
[Termination "MVM2008 won by resignation"]

1. e4 {[%clk 0:03:00.9]} 1... d5 {[%clk 0:02:58.7]} 2. exd5 {[%clk 0:03:00.4]}
2... Qxd5 {[%clk 0:02:58.7]} 3. Nc3 {[%clk 0:03:01.1]} 3... Qa5 {[%clk
0:02:58.6]} 4. Nf3 {[%clk 0:03:00.7]} 4... c6 {[%clk 0:02:58.9]} 5. b4 {[%clk
0:02:59.5]} 5... Qxb4 {[%clk 0:02:57.3]} 6. Rb1 {[%clk 0:03:00.1]} 6... Qd6
{[%clk 0:02:57.5]} 7. d4 {[%clk 0:02:59.9]} 7... Nf6 {[%clk 0:02:57]} 8. Bc4
{[%clk 0:02:58.4]} 8... b5 {[%clk 0:02:47.7]} 9. Bb3 {[%clk 0:02:57.4]} 9... a5
{[%clk 0:02:47.9]} 10. a3 {[%clk 0:02:50.6]} 10... Bg4 {[%clk 0:02:42.7]} 11. h3
{[%clk 0:02:49.2]} 11... Bh5 {[%clk 0:02:40.3]} 12. g4 {[%clk 0:02:49]} 12...
Bg6 {[%clk 0:02:40]} 13. Ne5 {[%clk 0:02:49.4]} 13... Nbd7 {[%clk 0:02:32.2]}
14. Bf4 {[%clk 0:02:42.5]} 14... Nxe5 {[%clk 0:02:25.2]} 15. Bxe5 {[%clk
0:02:43.4]} 15... Qd7 {[%clk 0:02:19.9]} 16. Qf3 {[%clk 0:02:27.8]} 16... e6
{[%clk 0:02:11.6]} 17. h4 {[%clk 0:02:24]} 17... b4 {[%clk 0:01:59.7]} 18. h5
{[%clk 0:02:18.9]} 18... Bxc2 {[%clk 0:01:29.1]} 19. Bxc2 {[%clk 0:02:17.1]}
19... bxc3 {[%clk 0:01:29]} 20. h6 {[%clk 0:01:57.8]} 20... Qd5 {[%clk
0:01:13.5]} 21. Qxd5 {[%clk 0:01:50.1]} 21... exd5 {[%clk 0:01:02.9]} 22. hxg7
{[%clk 0:01:38.8]} 22... Bxg7 {[%clk 0:01:02.7]} 23. g5 {[%clk 0:01:38.9]} 23...
Nh5 {[%clk 0:00:53]} 24. Rxh5 {[%clk 0:01:38.3]} 24... Bxe5 {[%clk 0:00:53.1]}
25. dxe5 {[%clk 0:01:39.2]} 25... O-O-O {[%clk 0:00:43.1]} 26. Rh6 {[%clk
0:01:25.9]} 26... d4 {[%clk 0:00:30.6]} 27. Rxc6+ {[%clk 0:00:58.8]} 27... Kd7
{[%clk 0:00:30.7]} 28. Rd6+ {[%clk 0:00:59]} 28... Kc7 {[%clk 0:00:30.4]} 29.
Rbb6 {[%clk 0:00:52.9]} 29... Rxd6 {[%clk 0:00:30.1]} 30. Rxd6 {[%clk
0:00:53.5]} 30... Rd8 {[%clk 0:00:19.7]} 31. Rxd8 {[%clk 0:00:49]} 31... Kxd8
{[%clk 0:00:20.6]} 32. Bxh7 {[%clk 0:00:48.6]} 32... Kd7 {[%clk 0:00:21.2]} 33.
Bd3 {[%clk 0:00:48]} 33... Ke6 {[%clk 0:00:21]} 34. f4 {[%clk 0:00:47.4]} 34...
Kd5 {[%clk 0:00:20.4]} 35. Kd1 {[%clk 0:00:46.2]} 35... Kc5 {[%clk 0:00:14.8]}
36. Kc2 {[%clk 0:00:42.8]} 36... Kd5 {[%clk 0:00:14.7]} 37. a4 {[%clk
0:00:41.5]} 37... Ke6 {[%clk 0:00:13.9]} 38. Be4 {[%clk 0:00:40.4]} 38... Ke7
{[%clk 0:00:12.8]} 39. Kd3 {[%clk 0:00:39.2]} 39... Ke6 {[%clk 0:00:13.1]} 40.
Kxd4 {[%clk 0:00:38.7]} 1-0

[Event "Early-Titled-Tuesday-Blitz-February-13-2024"]
[Site "Chess.com"]
[Date "2024.02.13"]
[Round "3"]
[White "VitaliyBernadskiy"]
[Black "ATM622"]
[Result "0-1"]
[WhiteElo "2872"]
[BlackElo "2451"]
[TimeControl "180+1"]
[EndTime "8:31:36 PST"]
[Termination "ATM622 won by resignation"]

1. d4 {[%clk 0:03:00.9]} 1... Nf6 {[%clk 0:02:59.5]} 2. Nd2 {[%clk 0:03:00.6]}
2... d5 {[%clk 0:02:59]} 3. Ndf3 {[%clk 0:03:00.5]} 3... Bf5 {[%clk 0:02:58.3]}
4. Bf4 {[%clk 0:03:00.2]} 4... e6 {[%clk 0:02:57.1]} 5. e3 {[%clk 0:03:00.6]}
5... Bd6 {[%clk 0:02:56.4]} 6. Bd3 {[%clk 0:03:00.1]} 6... Bxd3 {[%clk 0:02:55]}
7. Qxd3 {[%clk 0:02:59.9]} 7... O-O {[%clk 0:02:53.7]} 8. Ne5 {[%clk 0:02:59.6]}
8... c5 {[%clk 0:02:51.8]} 9. c3 {[%clk 0:02:59.6]} 9... Qc7 {[%clk 0:02:50.7]}
10. Ngf3 {[%clk 0:02:57.3]} 10... Nbd7 {[%clk 0:02:50.4]} 11. h4 {[%clk
0:02:56.4]} 11... Ne4 {[%clk 0:02:49.1]} 12. Rd1 {[%clk 0:02:50.8]} 12... c4
{[%clk 0:02:46.4]} 13. Qc2 {[%clk 0:02:47.7]} 13... f6 {[%clk 0:02:43.8]} 14.
Nxd7 {[%clk 0:02:44.9]} 14... Qxd7 {[%clk 0:02:44.7]} 15. h5 {[%clk 0:02:38.2]}
15... Bxf4 {[%clk 0:02:33.9]} 16. exf4 {[%clk 0:02:38]} 16... b5 {[%clk
0:02:34.2]} 17. Nd2 {[%clk 0:02:07.8]} 17... f5 {[%clk 0:02:29.5]} 18. Nf3
{[%clk 0:02:04.4]} 18... h6 {[%clk 0:02:25.5]} 19. Ne5 {[%clk 0:02:04.1]} 19...
Qc7 {[%clk 0:02:22.7]} 20. f3 {[%clk 0:02:04.1]} 20... Nf6 {[%clk 0:02:20.3]}
21. Kf2 {[%clk 0:02:00.4]} 21... a5 {[%clk 0:02:18.2]} 22. Rde1 {[%clk 0:01:59]}
22... b4 {[%clk 0:02:16.9]} 23. Qa4 {[%clk 0:01:57.1]} 23... bxc3 {[%clk
0:02:13.6]} 24. bxc3 {[%clk 0:01:57.2]} 24... Rfb8 {[%clk 0:02:13.9]} 25. Re2
{[%clk 0:01:55.6]} 25... Rb6 {[%clk 0:02:11.6]} 26. Rh4 {[%clk 0:01:34.5]} 26...
Qb7 {[%clk 0:02:08.2]} 27. g4 {[%clk 0:01:16.1]} 27... fxg4 {[%clk 0:02:06]} 28.
Nxg4 {[%clk 0:01:17]} 28... Nxg4+ {[%clk 0:02:01.1]} 29. Rxg4 {[%clk 0:01:17.9]}
29... Qf7 {[%clk 0:01:54.8]} 30. Kg3 {[%clk 0:01:03.3]} 30... Rb1 {[%clk
0:01:49.7]} 31. Qc6 {[%clk 0:00:55.8]} 31... Re8 {[%clk 0:01:47.4]} 32. f5
{[%clk 0:00:50.3]} 32... Qxh5 {[%clk 0:01:37.4]} 33. fxe6 {[%clk 0:00:35.7]}
33... Rh1 {[%clk 0:01:34.4]} 34. Rg2 {[%clk 0:00:26.1]} 34... Rf8 {[%clk
0:01:25.3]} 35. Kf2 {[%clk 0:00:26.3]} 35... Qf5 {[%clk 0:01:15.6]} 36. Rxg7+
{[%clk 0:00:14.1]} 36... Kh8 {[%clk 0:01:16]} 37. Rf7 {[%clk 0:00:13.5]} 37...
Qc2+ {[%clk 0:01:15.7]} 38. Kg3 {[%clk 0:00:09.4]} 38... Rg8+ {[%clk 0:01:15.5]}
39. Kf4 {[%clk 0:00:09.7]} 39... Rh4+ {[%clk 0:01:01.9]} 40. Rg4 {[%clk
0:00:08.5]} 40... Rhxg4+ {[%clk 0:00:52.3]} 41. fxg4 {[%clk 0:00:08.7]} 41...
Qe4+ {[%clk 0:00:52.9]} 42. Kg3 {[%clk 0:00:09.1]} 42... Rxg4+ {[%clk
0:00:50.1]} 0-1

[Event "Early-Titled-Tuesday-Blitz-February-13-2024"]
[Site "Chess.com"]
[Date "2024.02.13"]
[Round "3"]
[White "campochess"]
[Black "NovakRatko"]
[Result "1-0"]
[WhiteElo "2131"]
[BlackElo "2332"]
[TimeControl "180+1"]
[EndTime "8:31:37 PST"]
[Termination "campochess won on time"]

1. d4 {[%clk 0:02:58.4]} 1... d5 {[%clk 0:02:59.8]} 2. Bg5 {[%clk 0:02:57.2]}
2... c5 {[%clk 0:02:59.5]} 3. dxc5 {[%clk 0:02:54.9]} 3... f6 {[%clk 0:02:59.6]}
4. Bd2 {[%clk 0:02:53.3]} 4... e5 {[%clk 0:02:55.7]} 5. b4 {[%clk 0:02:52.8]}
5... a5 {[%clk 0:02:55.5]} 6. c3 {[%clk 0:02:33.5]} 6... d4 {[%clk 0:02:39.3]}
7. cxd4 {[%clk 0:02:28.3]} 7... exd4 {[%clk 0:02:38.5]} 8. Nf3 {[%clk 0:02:25]}
8... axb4 {[%clk 0:02:37.2]} 9. Bxb4 {[%clk 0:02:23.8]} 9... Nc6 {[%clk
0:02:36.8]} 10. Bd2 {[%clk 0:02:06.5]} 10... Bxc5 {[%clk 0:02:35.7]} 11. g3
{[%clk 0:02:06.2]} 11... Be6 {[%clk 0:02:31.3]} 12. a3 {[%clk 0:02:03.9]} 12...
Nge7 {[%clk 0:02:20.2]} 13. Bg2 {[%clk 0:02:03.7]} 13... O-O {[%clk 0:02:19.9]}
14. O-O {[%clk 0:02:03.5]} 14... Qd7 {[%clk 0:02:19.5]} 15. Re1 {[%clk
0:01:59.8]} 15... Bg4 {[%clk 0:02:13.7]} 16. Bf4 {[%clk 0:01:56.3]} 16... Kh8
{[%clk 0:02:11]} 17. Qc1 {[%clk 0:01:54.2]} 17... b6 {[%clk 0:02:09.3]} 18. Nbd2
{[%clk 0:01:52.6]} 18... Ng6 {[%clk 0:02:06.7]} 19. Ne4 {[%clk 0:01:51]} 19...
Nxf4 {[%clk 0:02:00.7]} 20. Qxf4 {[%clk 0:01:45.2]} 20... Bxa3 {[%clk
0:01:54.8]} 21. Nfd2 {[%clk 0:01:31.8]} 21... Bb4 {[%clk 0:01:32.9]} 22. Rxa8
{[%clk 0:01:25.6]} 22... Rxa8 {[%clk 0:01:32.3]} 23. Rc1 {[%clk 0:01:24.9]}
23... Rf8 {[%clk 0:00:52.6]} 24. Nc4 {[%clk 0:01:21.9]} 24... Bxe2 {[%clk
0:00:43.9]} 25. Nxb6 {[%clk 0:01:19.7]} 25... Qd8 {[%clk 0:00:41.2]} 26. Rxc6
{[%clk 0:01:10.2]} 26... d3 {[%clk 0:00:36.9]} 27. Rc8 {[%clk 0:00:55.7]} 27...
Qe7 {[%clk 0:00:29.1]} 28. Rxf8+ {[%clk 0:00:54.3]} 28... Qxf8 {[%clk
0:00:29.3]} 29. Nd7 {[%clk 0:00:52.3]} 29... Qd8 {[%clk 0:00:26.8]} 30. Bh3
{[%clk 0:00:39.7]} 30... Qe7 {[%clk 0:00:08.6]} 31. Qb8+ {[%clk 0:00:35.6]} 1-0

[Event "Early-Titled-Tuesday-Blitz-February-13-2024"]
[Site "Chess.com"]
[Date "2024.02.13"]
[Round "3"]
[White "valorant64"]
[Black "Kirill_Klukin"]
[Result "1-0"]
[WhiteElo "2612"]
[BlackElo "2817"]
[TimeControl "180+1"]
[EndTime "8:31:41 PST"]
[Termination "valorant64 won by resignation"]

1. e4 {[%clk 0:02:58.8]} 1... c5 {[%clk 0:02:59.7]} 2. Nf3 {[%clk 0:02:58.3]}
2... Nc6 {[%clk 0:02:59.7]} 3. Bb5 {[%clk 0:02:56.3]} 3... g6 {[%clk 0:02:58.7]}
4. O-O {[%clk 0:02:56.3]} 4... Bg7 {[%clk 0:02:58.8]} 5. Re1 {[%clk 0:02:56.7]}
5... Nf6 {[%clk 0:02:58.5]} 6. c3 {[%clk 0:02:56.5]} 6... O-O {[%clk 0:02:58.4]}
7. d4 {[%clk 0:02:56.3]} 7... d5 {[%clk 0:02:59.1]} 8. e5 {[%clk 0:02:56.2]}
8... Ne4 {[%clk 0:02:59.6]} 9. Nbd2 {[%clk 0:02:55.1]} 9... cxd4 {[%clk
0:02:52]} 10. cxd4 {[%clk 0:02:48.2]} 10... Bf5 {[%clk 0:02:46.7]} 11. Bxc6
{[%clk 0:02:48]} 11... bxc6 {[%clk 0:02:47]} 12. Nh4 {[%clk 0:02:41.6]} 12...
Qb6 {[%clk 0:02:40.5]} 13. Nxf5 {[%clk 0:02:39.9]} 13... gxf5 {[%clk 0:02:41.4]}
14. Nf3 {[%clk 0:02:26]} 14... e6 {[%clk 0:02:40.4]} 15. Re2 {[%clk 0:02:25.9]}
15... c5 {[%clk 0:02:40.3]} 16. Be3 {[%clk 0:02:23.2]} 16... cxd4 {[%clk
0:02:33.7]} 17. Nxd4 {[%clk 0:02:18]} 17... Qa5 {[%clk 0:01:14.2]} 18. Nb3
{[%clk 0:01:49.6]} 18... Qb5 {[%clk 0:01:10.5]} 19. f3 {[%clk 0:01:48.2]} 19...
Bxe5 {[%clk 0:00:59.7]} 20. fxe4 {[%clk 0:01:47.5]} 20... dxe4 {[%clk
0:01:00.6]} 21. Qf1 {[%clk 0:01:39.8]} 21... Rfd8 {[%clk 0:00:54.8]} 22. Rd2
{[%clk 0:01:36.1]} 22... Qxf1+ {[%clk 0:00:51.2]} 23. Kxf1 {[%clk 0:01:35.4]}
23... Rxd2 {[%clk 0:00:51.1]} 24. Nxd2 {[%clk 0:01:36.1]} 24... Bxb2 {[%clk
0:00:50.4]} 25. Rb1 {[%clk 0:01:36.7]} 25... Be5 {[%clk 0:00:51]} 26. g3 {[%clk
0:01:36.2]} 26... Rd8 {[%clk 0:00:48.1]} 27. Nc4 {[%clk 0:01:35.4]} 27... Bf6
{[%clk 0:00:41]} 28. Bxa7 {[%clk 0:01:33.3]} 28... Rd3 {[%clk 0:00:34.6]} 29. a4
{[%clk 0:01:27.6]} 29... Rc3 {[%clk 0:00:32.2]} 30. Nd6 {[%clk 0:01:05.9]} 30...
Be5 {[%clk 0:00:31.4]} 31. Nb5 {[%clk 0:00:56.6]} 31... Rc2 {[%clk 0:00:29.6]}
32. Bd4 {[%clk 0:00:55.7]} 32... Rxh2 {[%clk 0:00:20.4]} 33. Kg1 {[%clk
0:00:52.6]} 33... Bxg3 {[%clk 0:00:20.6]} 34. Ra1 {[%clk 0:00:50.1]} 34... f4
{[%clk 0:00:11.7]} 35. a5 {[%clk 0:00:45.8]} 35... e3 {[%clk 0:00:12.2]} 36. a6
{[%clk 0:00:45.5]} 36... f3 {[%clk 0:00:08.4]} 37. Bxe3 {[%clk 0:00:44.6]} 37...
f2+ {[%clk 0:00:09]} 38. Bxf2 {[%clk 0:00:43.9]} 38... Rxf2 {[%clk 0:00:09.5]}
39. a7 {[%clk 0:00:43.8]} 1-0

[Event "Early-Titled-Tuesday-Blitz-February-13-2024"]
[Site "Chess.com"]
[Date "2024.02.13"]
[Round "3"]
[White "AsaHoffmann"]
[Black "invisible_s0ul"]
[Result "1-0"]
[WhiteElo "2431"]
[BlackElo "2208"]
[TimeControl "180+1"]
[EndTime "8:31:42 PST"]
[Termination "AsaHoffmann won by checkmate"]

1. d4 {[%clk 0:02:53]} 1... Nf6 {[%clk 0:02:56.7]} 2. Bg5 {[%clk 0:02:51.9]}
2... Ne4 {[%clk 0:02:56.2]} 3. Bf4 {[%clk 0:02:51.5]} 3... d5 {[%clk 0:02:56.8]}
4. f3 {[%clk 0:02:51.5]} 4... Nf6 {[%clk 0:02:54.2]} 5. e4 {[%clk 0:02:51.2]}
5... dxe4 {[%clk 0:02:53]} 6. Nc3 {[%clk 0:02:50.6]} 6... exf3 {[%clk
0:02:50.8]} 7. Nxf3 {[%clk 0:02:50.2]} 7... Bg4 {[%clk 0:02:48]} 8. h3 {[%clk
0:02:49.9]} 8... Bh5 {[%clk 0:02:42.5]} 9. g4 {[%clk 0:02:49.5]} 9... Bg6 {[%clk
0:02:43.2]} 10. Ne5 {[%clk 0:02:49.3]} 10... Ne4 {[%clk 0:02:34]} 11. Bg2 {[%clk
0:02:46.9]} 11... Nxc3 {[%clk 0:02:29.3]} 12. bxc3 {[%clk 0:02:45.7]} 12... c6
{[%clk 0:02:25.1]} 13. h4 {[%clk 0:02:44.9]} 13... h5 {[%clk 0:02:21.3]} 14.
Nxg6 {[%clk 0:02:43.8]} 14... fxg6 {[%clk 0:02:22.2]} 15. Qd3 {[%clk 0:02:40.3]}
15... Qa5 {[%clk 0:02:00.4]} 16. Qxg6+ {[%clk 0:02:34.3]} 16... Kd8 {[%clk
0:02:01.1]} 17. Bd2 {[%clk 0:02:08.3]} 17... hxg4 {[%clk 0:01:52.8]} 18. Qxg4
{[%clk 0:02:06.7]} 18... Nd7 {[%clk 0:01:44.3]} 19. O-O {[%clk 0:02:00.1]} 19...
Qh5 {[%clk 0:01:40.3]} 20. Qxh5 {[%clk 0:01:51.8]} 20... Rxh5 {[%clk 0:01:41.2]}
21. Bg5 {[%clk 0:01:51.2]} 21... Nf6 {[%clk 0:01:30.1]} 22. Rab1 {[%clk
0:01:50]} 22... b6 {[%clk 0:01:04.2]} 23. Bxc6 {[%clk 0:01:47.7]} 23... Rc8
{[%clk 0:01:04.8]} 24. Bf3 {[%clk 0:01:46.4]} 24... Rh8 {[%clk 0:00:58.6]} 25.
Rb3 {[%clk 0:01:41.2]} 25... e6 {[%clk 0:00:53.1]} 26. Bb7 {[%clk 0:01:31.4]}
26... Rc7 {[%clk 0:00:52.8]} 27. Bg2 {[%clk 0:01:19.9]} 27... Be7 {[%clk
0:00:51.1]} 28. Re1 {[%clk 0:01:13.5]} 28... Kd7 {[%clk 0:00:47.8]} 29. Bh3
{[%clk 0:01:12.2]} 29... Rc6 {[%clk 0:00:47.1]} 30. c4 {[%clk 0:01:11.3]} 30...
Re8 {[%clk 0:00:32.5]} 31. d5 {[%clk 0:01:10.7]} 31... Bc5+ {[%clk 0:00:32.3]}
32. Kg2 {[%clk 0:01:09.5]} 32... Rd6 {[%clk 0:00:28.7]} 33. Bxe6+ {[%clk
0:01:05.8]} 33... Rexe6 {[%clk 0:00:26.8]} 34. Rxe6 {[%clk 0:01:03.3]} 34...
Rxe6 {[%clk 0:00:27.7]} 35. dxe6+ {[%clk 0:01:03.2]} 35... Kxe6 {[%clk
0:00:27.8]} 36. Bxf6 {[%clk 0:01:02.3]} 36... Kxf6 {[%clk 0:00:26.8]} 37. Kf3
{[%clk 0:01:02]} 37... g5 {[%clk 0:00:25.5]} 38. hxg5+ {[%clk 0:00:56.9]} 38...
Kxg5 {[%clk 0:00:26.4]} 39. Ke4 {[%clk 0:00:57.1]} 39... Kg4 {[%clk 0:00:25.8]}
40. Kd5 {[%clk 0:00:56.3]} 40... a5 {[%clk 0:00:24.9]} 41. a4 {[%clk 0:00:55.5]}
41... Kf4 {[%clk 0:00:25.8]} 42. Rb5 {[%clk 0:00:54.7]} 42... Ke3 {[%clk
0:00:24.8]} 43. Rxc5 {[%clk 0:00:54.3]} 43... bxc5 {[%clk 0:00:25.7]} 44. Kxc5
{[%clk 0:00:54.4]} 44... Kd2 {[%clk 0:00:26.6]} 45. Kb5 {[%clk 0:00:54.6]} 45...
Kxc2 {[%clk 0:00:27.5]} 46. c5 {[%clk 0:00:54.7]} 46... Kb3 {[%clk 0:00:28.4]}
47. Kxa5 {[%clk 0:00:54.4]} 47... Ka3 {[%clk 0:00:28.8]} 48. c6 {[%clk 0:00:53]}
48... Ka2 {[%clk 0:00:29.7]} 49. Kb4 {[%clk 0:00:52.8]} 49... Ka1 {[%clk
0:00:30.6]} 50. c7 {[%clk 0:00:52.6]} 50... Ka2 {[%clk 0:00:31.5]} 51. c8=Q
{[%clk 0:00:51.1]} 51... Ka1 {[%clk 0:00:32.4]} 52. Kb3 {[%clk 0:00:49.6]} 52...
Kb1 {[%clk 0:00:23.7]} 53. Qc2+ {[%clk 0:00:48.6]} 53... Ka1 {[%clk 0:00:23.6]}
54. Qc1# {[%clk 0:00:48.5]} 1-0

[Event "Early-Titled-Tuesday-Blitz-February-13-2024"]
[Site "Chess.com"]
[Date "2024.02.13"]
[Round "3"]
[White "lluiss"]
[Black "Chernyavsky_A"]
[Result "0-1"]
[WhiteElo "2145"]
[BlackElo "2382"]
[TimeControl "180+1"]
[EndTime "8:31:42 PST"]
[Termination "Chernyavsky_A won by resignation"]

1. e4 {[%clk 0:03:00.9]} 1... c5 {[%clk 0:02:58.6]} 2. Nf3 {[%clk 0:03:00.1]}
2... Nc6 {[%clk 0:02:57.3]} 3. d4 {[%clk 0:03:00]} 3... cxd4 {[%clk 0:02:58.2]}
4. Nxd4 {[%clk 0:03:00.1]} 4... g6 {[%clk 0:02:58.9]} 5. c4 {[%clk 0:02:57.1]}
5... Bg7 {[%clk 0:02:59.2]} 6. Be3 {[%clk 0:02:57]} 6... Nf6 {[%clk 0:02:59.3]}
7. Nc3 {[%clk 0:02:56]} 7... O-O {[%clk 0:02:59.8]} 8. Be2 {[%clk 0:02:55.5]}
8... d6 {[%clk 0:03:00.4]} 9. O-O {[%clk 0:02:53.2]} 9... Bd7 {[%clk 0:03:00.2]}
10. f3 {[%clk 0:02:52.9]} 10... Nxd4 {[%clk 0:02:59.2]} 11. Bxd4 {[%clk
0:02:53]} 11... Bc6 {[%clk 0:02:59.7]} 12. Qd2 {[%clk 0:02:52.2]} 12... a5
{[%clk 0:02:59.7]} 13. Nd5 {[%clk 0:02:38.9]} 13... Bxd5 {[%clk 0:02:58.9]} 14.
cxd5 {[%clk 0:02:33.8]} 14... Nd7 {[%clk 0:02:58.9]} 15. Bxg7 {[%clk 0:02:32.8]}
15... Kxg7 {[%clk 0:02:59.8]} 16. Qd4+ {[%clk 0:02:32.8]} 16... f6 {[%clk
0:02:59.9]} 17. Rfc1 {[%clk 0:02:32.3]} 17... Nc5 {[%clk 0:02:59.7]} 18. b3
{[%clk 0:02:04.9]} 18... Qb6 {[%clk 0:02:55.6]} 19. Rc4 {[%clk 0:01:58.4]} 19...
Qa7 {[%clk 0:02:50.1]} 20. Rac1 {[%clk 0:01:33.7]} 20... b5 {[%clk 0:02:49.3]}
21. R4c2 {[%clk 0:01:32.6]} 21... b4 {[%clk 0:02:48.6]} 22. Bb5 {[%clk
0:01:27.7]} 22... Qb8 {[%clk 0:01:27.3]} 23. Bc6 {[%clk 0:01:25.7]} 23... Ra7
{[%clk 0:01:27.3]} 24. f4 {[%clk 0:01:13.6]} 24... Qc7 {[%clk 0:01:22.1]} 25. g3
{[%clk 0:00:54.4]} 25... e5 {[%clk 0:01:21.5]} 26. Qe3 {[%clk 0:00:49.9]} 26...
exf4 {[%clk 0:01:15.5]} 27. Qxf4 {[%clk 0:00:46.6]} 27... Qe7 {[%clk 0:01:14.9]}
28. Rd1 {[%clk 0:00:30.8]} 28... Nxe4 {[%clk 0:01:13]} 29. Re2 {[%clk
0:00:29.3]} 29... f5 {[%clk 0:01:13.2]} 30. Bb5 {[%clk 0:00:23.4]} 30... Qf6
{[%clk 0:01:07.3]} 31. Rde1 {[%clk 0:00:22.4]} 31... Qd4+ {[%clk 0:01:01.8]} 32.
Qe3 {[%clk 0:00:15.5]} 32... Qxe3+ {[%clk 0:00:37.8]} 33. Rxe3 {[%clk
0:00:15.4]} 33... Nc3 {[%clk 0:00:38.5]} 34. Re7+ {[%clk 0:00:14.6]} 34... Rxe7
{[%clk 0:00:36]} 35. Rxe7+ {[%clk 0:00:14.3]} 35... Rf7 {[%clk 0:00:36.7]} 36.
Rxf7+ {[%clk 0:00:11]} 36... Kxf7 {[%clk 0:00:37.6]} 0-1